fUSD/lending_fUSD_20251030
["ID","MTS","AMOUNT","RATE_DAILY","PERIOD"]
[392705508,1761835843201,-167.58,0.0002,2]
[392705509,1761835843210,-8997.03021271,0.0002001,2]
[392705510,1761835843220,-1252.0,0.00020024,2]
[392705511,1761835843231,-509.07798419,0.00020068,2]
[392705512,1761835843240,-512.47897856,0.00020068,2]
[392705513,1761835843250,-1500.0,0.00020068,2]
[392705514,1761835843264,-156.47375685,0.00020068,2]
[392705515,1761835843274,-1500.0,0.00020068,2]
[392705516,1761835843286,-1500.0,0.00020068,2]
[392705517,1761835843296,-1500.0,0.00020068,2]
[392705518,1761835843305,-1500.0,0.00020068,2]
[392705519,1761835843315,-1500.0,0.00020068,2]
[392705520,1761835843324,-1500.0,0.00020068,2]
[392705521,1761835843334,-1500.0,0.00020068,2]
[392705522,1761835843344,-1000.0,0.00020116,2]
[392705523,1761835843354,-163.90069233,0.00020143,2]
[392705524,1761835843367,-641.12,0.00020187,2]
[392705525,1761835843377,-500.0,0.00020205,2]
[392705527,1761835843386,-1057.7028,0.00020299,2]
[392705529,1761835843395,-152.0,0.0002039,4]
[392705531,1761835843405,-500.0,0.00020479,2]
[392705533,1761835843414,-813.67868286,0.00020521,2]
[392705535,1761835843423,-1000.0,0.00020521,2]
[392705536,1761835843433,-1000.0,0.00020521,2]
[392705538,1761835843443,-1000.0,0.00020521,2]
[392705540,1761835843453,-311.98675031,0.00020521,2]
[392705542,1761835843463,-21294.74,0.00020548,2]
[392705544,1761835843475,-167.58,0.0002059,2]
[392705546,1761835843484,-477.13749083,0.000206,7]
[392705548,1761835843494,-2000.0,0.00020616,2]
[392705549,1761835843505,-772.52876704,0.00020616,2]
[392705551,1761835843515,-2000.0,0.00020616,2]
[392705553,1761835843526,-2000.0,0.00020616,2]
[392705555,1761835843536,-1357.90479044,0.00020616,2]
[392705556,1761835843546,-1337.78371196,0.00020616,2]
[392705557,1761835843556,-202.16342668,0.00020616,2]
[392705558,1761835843566,-207.74721825,0.00020616,2]
[392705559,1761835843577,-160.83,0.00020635,2]
[392705560,1761835843587,-22427.28881962,0.000207,2]
[392705561,1761835843597,-541.49243586,0.0002073,7]
[392705562,1761835843606,-500.0,0.00020753,2]
[392705563,1761835843616,-1000.0,0.00020795,2]
[392705564,1761835843625,-152.0,0.00020884,5]
[392705565,1761835843634,-2000.0,0.00020895,2]
[392705566,1761835843644,-2000.0,0.00020895,2]
[392705567,1761835843653,-167.58,0.00020941,2]
[392705568,1761835843663,-324.98,0.00020946,2]
[392705569,1761835843672,-299.99,0.00020951,7]
[392705570,1761835843681,-9069.81,0.00020951,2]
[392705571,1761835843691,-5515.04,0.00020951,2]
[392705572,1761835843701,-5857.41,0.00020951,2]
[392705573,1761835843711,-150.99,0.00020951,2]
[392705574,1761835843722,-9999.99,0.00020951,2]
[392705575,1761835843732,-700.0,0.0002097,2]
[392705576,1761835843741,-176.19,0.00020973,2]
[392705577,1761835843750,-167.58,0.0002099,2]
[392705578,1761835843760,-796.818,0.00020998,2]
[392705579,1761835843769,-607.0,0.00020998,2]
[392705580,1761835843778,-300.0,0.00020999,2]
[392705581,1761835843787,-308.44726366,0.00020999,2]
[392705582,1761835843797,-160.0,0.00021,7]
[392705583,1761835843806,-1000.0,0.00021,3]
[392705584,1761835843815,-12707.20615643,0.00021,2]
[392705585,1761835843824,-1180.84136879,0.00021,2]
[392705586,1761835843834,-41368.15089334,0.00021,2]
[392705587,1761835843843,-194.91453678,0.00021,2]
[392705588,1761835843852,-350.0,0.00021,2]
[392705589,1761835843861,-500.0,0.00021027,2]
[392705590,1761835843871,-1000.0,0.00021062,2]
[392705591,1761835843880,-1606.42,0.00021068,2]
[392705592,1761835843890,-1500.0,0.00021068,2]
[392705593,1761835843899,-1500.0,0.00021068,2]
[392705594,1761835843908,-1012.15015859,0.00021068,2]
[392705595,1761835843918,-417.0,0.000211,2]
[392705596,1761835843927,-167.58,0.00021154,2]
[392705597,1761835843937,-2500.0,0.00021164,2]
[392705598,1761835843947,-438.37343532,0.00021164,2]
[392705599,1761835843956,-2020.55385123,0.00021164,2]
[392705600,1761835843966,-477.13749083,0.000212,7]
[392705601,1761835843975,-500.0,0.00021301,2]
[392705602,1761835843985,-161.49,0.0002136,2]
[392705603,1761835843994,-6309.66,0.0002137,2]
[392705604,1761835844003,-152.0,0.00021379,6]
[392705605,1761835844013,-167.58,0.0002149,2]
[392705606,1761835844022,-300.0,0.00021499,2]
[392705607,1761835844031,-219.76405723,0.000215,2]
[392705608,1761835844041,-559.20937244,0.000215,2]
[392705609,1761835844056,-56077.31027091,0.000215,2]
[392705610,1761835844065,-151.0,0.000215,2]
[392705611,1761835844075,-1152.0,0.00021518,2]
[392705612,1761835844084,-161.94832759,0.00021529,2]
[392705613,1761835844094,-150.0,0.00021529,2]
[392705614,1761835844103,-150.0,0.00021529,2]
[392705615,1761835844112,-1584.4863316,0.00021539,2]
[392705616,1761835844501,-533.77400246,0.00021539,2]
[392705617,1761835844554,-10.73966594,0.00021539,2]
[392705618,1761835844563,-1091.03085396,0.00021616,2]
[392705619,1761835844574,-864.16983711,0.00021616,2]
[392705620,1761835844584,-2419.76,0.00021677,2]
[392705621,1761835844593,-415.1,0.00021677,2]
[392705622,1761835844602,-415.1,0.00021677,2]
[392705623,1761835844611,-548.57,0.00021677,2]
[392705624,1761835844620,-415.1,0.00021677,2]
[392705625,1761835844630,-1523.47337725,0.00021712,2]
[392705626,1761835844640,-152.0,0.00021873,7]
[392705627,1761835844649,-5000.0,0.00021918,2]
[392705628,1761835844658,-600.0,0.00021918,4]
[392705629,1761835844668,-600.0,0.00021918,4]
[392705630,1761835844677,-600.0,0.00021918,4]
[392705631,1761835844686,-600.0,0.00021918,4]
[392705632,1761835844695,-600.0,0.00021918,4]
[392705633,1761835844704,-600.0,0.00021918,4]
[392705634,1761835844714,-600.0,0.00021918,4]
[392705635,1761835844723,-600.0,0.00021918,4]
[392705636,1761835844733,-4609.0,0.00021959,2]
[392705637,1761835844742,-167.58,0.0002199,2]
[392705638,1761835844751,-167.58,0.0002199,2]
[392705639,1761835844761,-167.58,0.0002199,2]
[392705640,1761835844770,-167.58,0.0002199,2]
[392705641,1761835844779,-167.58,0.0002199,2]
[392705642,1761835844788,-167.58,0.0002199,2]
[392705643,1761835844797,-163.19,0.0002199,2]
[392705644,1761835844807,-300.0,0.00021999,2]
[392705645,1761835844817,-5897.0,0.00022,3]
[392705646,1761835844826,-1883.30286978,0.00022,2]
[392705647,1761835844835,-786.99339211,0.00022,7]
[392705648,1761835844845,-3670.0,0.00022,2]
[392705649,1761835844853,-245801.24254027,0.00022,4]
[392705650,1761835844865,-375.2657602,0.00022,4]
[392705651,1761835844896,-232.51812629,0.00022,4]
[392705652,1761835844905,-171.53,0.00022,2]
[392705653,1761835844915,-4104.32262922,0.00022,2]
[392705654,1761835844924,-160.97,0.00022,2]
[392705655,1761835844933,-244.26,0.00022,2]
[392705656,1761835844942,-1721.5,0.00022054,3]
[392705657,1761835844952,-353.38337805,0.00022077,2]
[392705658,1761835844961,-250.0,0.00022077,2]
[392705659,1761835844971,-152.0,0.00022367,8]
[392705660,1761835844980,-2538.25722364,0.000225,2]
[392705664,1761835846469,-209.306,0.00014998,2]
[392705666,1761835846480,-162.99173485,0.000225,2]
[392705668,1761835846491,-10498.3954366,0.000225,2]
[392705670,1761835846501,-152.71,0.00022603,2]
[392705672,1761835846510,-153.55775658,0.00022624,2]
[392705675,1761835846520,-167.58,0.0002263,2]
[392705677,1761835846529,-19343.43346951,0.0002264,2]
[392705679,1761835846541,-14798.88140637,0.0002264,2]
[392705685,1761835846593,-533.05670525,0.0002264,2]
[392705687,1761835846605,-315.18310802,0.0002264,2]
[392705690,1761835846617,-540.95,0.0002264,2]
[392705916,1761835994222,500.0,0.00029779,120]
[392705917,1761835997211,2077.449879,0.00029779,120]
[392705918,1761836003431,500.0,0.00029779,120]
[392705919,1761836034280,-168.0,0.00014499,2]
[392705920,1761836034310,-168.0,0.00014624,2]
[392705921,1761836034341,-168.0,0.00014875,2]
[392705922,1761836034368,-250.0,0.00014998,2]
[392705923,1761836034397,-209.639,0.00014998,2]
[392705924,1761836034426,-218.073,0.00014998,2]
[392705925,1761836034451,-163.90069235,0.00015,2]
[392705926,1761836034479,-168.0,0.00015047,2]
[392705927,1761836034506,-168.0,0.00015134,2]
[392705928,1761836034535,-168.0,0.00015212,2]
[392705929,1761836034562,-168.0,0.00015363,2]
[392705930,1761836034591,-168.0,0.0001556,2]
[392705931,1761836034616,-477.13749083,0.00016496,2]
[392705932,1761836034641,-160.0,0.00016497,2]
[392705933,1761836034667,-250.0,0.00016498,2]
[392705934,1761836034693,-250.0,0.00016498,2]
[392705935,1761836034720,-436.28957862,0.00016674,7]
[392705936,1761836034745,-300.0,0.00016985,2]
[392705937,1761836042569,550.0,0.00016985,2]
[392705938,1761836046603,-428262.26,0.00016986,2]
[392705939,1761836046629,-250.0,0.00016993,2]
[392705940,1761836046657,-202.27,0.00017,7]
[392705941,1761836050721,181.15836115,0.00016278,2]
[392705942,1761836051020,261.77374718,0.00016674,7]
[392705943,1761836077923,163.90069233,0.00015,2]
[392705944,1761836106198,189.0,0.00022477,120]
[392705945,1761836132943,485.298,0.00031506,120]
[392705946,1761836177028,250.0,0.00014931,2]
[392705947,1761836315830,1000.0,0.00014931,2]
[392705948,1761836346660,200.0,0.00014931,2]
[392705949,1761836440320,809.4937561,0.00031507,120]
[392705951,1761836583635,1524.72,0.00015,2]
[392705953,1761836694679,180.21,0.00014931,2]
[392705954,1761836768362,174.73907565,0.00031506,120]
[392705955,1761836931085,999.0,0.00014931,3]
[392705984,1761837032851,-300.0,0.00015761,2]
[392705985,1761837032863,-35.01682508,0.00015761,2]
[392705987,1761837032981,-264.98317492,0.00015761,2]
[392705989,1761837032992,-1200.0,0.00015761,2]
[392705991,1761837033003,-450.75976693,0.00015762,2]
[392705993,1761837033015,-312.07198502,0.00015762,2]
[392706024,1761837038246,-57.16824805,0.00015762,2]
[392706025,1761837038256,-607.0,0.00015762,2]
[392706026,1761837038266,-954.094,0.00015762,2]
[392706027,1761837038275,-573.0,0.00015762,2]
[392706028,1761837038285,-450.0,0.00015762,2]
[392706029,1761837038295,-181.24889506,0.00016278,2]
[392706030,1761837038305,-300.0,0.00016301,2]
[392706031,1761837038315,-165.43,0.00016712,2]
[392706032,1761837038325,-1000.0,0.00016797,2]
[392706033,1761837038334,-662.03118522,0.00016993,2]
[392706034,1761837038344,-151.0,0.00016993,2]
[392706035,1761837038353,-182.05,0.00017,7]
[392706036,1761837038362,-250.0,0.00017,2]
[392706037,1761837038372,-215.2,0.00017,2]
[392706038,1761837038382,-420.0,0.00017236,2]
[392706039,1761837038391,-1680.0,0.00017323,2]
[392706040,1761837038401,-250.0,0.00017337,2]
[392706041,1761837038411,-250.0,0.00017337,2]
[392706042,1761837038421,-250.0,0.00017337,2]
[392706043,1761837038430,-300.0,0.00017671,2]
[392706044,1761837038440,-477.13749083,0.00017874,2]
[392706046,1761837038450,-2235.61376412,0.000179,2]
[392706048,1761837038462,-7744.50643588,0.000179,2]
[392706050,1761837038472,-150.0,0.00017998,2]
[392706052,1761837038482,-157.0642483,0.00018125,7]
[392706054,1761837038492,-1000.0,0.00018664,2]
[392706056,1761837038502,-142.02451572,0.00018762,2]
[392706058,1761837038515,-677.97548428,0.00018762,2]
[392706060,1761837038526,-606.0,0.00018762,2]
[392706062,1761837038536,-400.0,0.0001897,2]
[392706064,1761837038546,-300.0,0.00019,2]
[392706067,1761837038556,-1046.92420347,0.0001904,2]
[392706069,1761837038568,-1304.07579653,0.0001904,2]
[392706072,1761837038578,-293.35435718,0.0001912,2]
[392706074,1761837038587,-850.0,0.0001912,2]
[392706076,1761837038598,-200.0,0.00019121,2]
[392706078,1761837038611,-200.0,0.00019121,2]
[392706080,1761837038621,-306.57558661,0.00019121,2]
[392706082,1761837038631,-500.0,0.00019121,2]
[392706084,1761837038641,-617.64328901,0.00019121,2]
[392706086,1761837038651,-250.0,0.00019121,2]
[392706087,1761837038661,-250.0,0.00019121,2]
[392706089,1761837038672,-250.0,0.00019121,2]
[392706091,1761837038682,-250.0,0.00019121,2]
[392706093,1761837038692,-250.0,0.00019121,2]
[392706095,1761837038702,-250.0,0.00019121,2]
[392706097,1761837038712,-66.55926141,0.00019121,2]
[392706100,1761837038730,-183.44073859,0.00019121,2]
[392706102,1761837038740,-250.0,0.00019121,2]
[392706104,1761837038750,-500.0,0.00019121,2]
[392706106,1761837038760,-533.96032711,0.00019131,2]
[392706108,1761837038770,-500.0,0.00019131,2]
[392706110,1761837038780,-97.09553844,0.00019131,2]
[392706167,1761837040500,-122.81761235,0.00019131,2]
[392706168,1761837040510,-151.0,0.00019131,2]
[392706169,1761837040521,-331.01559261,0.00019131,2]
[392706170,1761837040530,-848.99359892,0.00019132,2]
[392706171,1761837040542,-251.53,0.00019132,2]
[392706172,1761837040574,-30945.90067808,0.00019132,2]
[392706173,1761837040584,-16230.8217141,0.00019132,2]
[392706174,1761837040593,-921.1081637,0.00019132,2]
[392706175,1761837040606,-4299.6377941,0.00019132,2]
[392706176,1761837040615,-151.0,0.00019178,2]
[392706177,1761837040623,-400.0,0.0001937,2]
[392706178,1761837040632,-150.0,0.0001937,2]
[392706179,1761837040642,-255.49518054,0.0001937,2]
[392706180,1761837040651,-500.0,0.0001937,2]
[392706181,1761837040661,-500.0,0.0001937,2]
[392706182,1761837040671,-215.2,0.000194,2]
[392706183,1761837040680,-400.0,0.0001947,2]
[392706184,1761837040690,-500.0,0.0001947,2]
[392706185,1761837040699,-500.0,0.0001947,2]
[392706186,1761837040709,-300.0,0.0001947,2]
[392706187,1761837040720,-500.0,0.00019507,2]
[392706188,1761837040730,-500.0,0.00019507,2]
[392706189,1761837040739,-500.0,0.00019607,2]
[392706190,1761837040748,-500.0,0.00019607,2]
[392706191,1761837040758,-300.0,0.00019607,2]
[392706192,1761837040768,-500.0,0.00019644,2]
[392706193,1761837040777,-500.0,0.00019644,2]
[392706194,1761837040787,-156.587,0.00019726,2]
[392706195,1761837040796,-500.0,0.00019744,2]
[392706196,1761837040805,-237.73383359,0.00019744,2]
[392706197,1761837040814,-300.0,0.00019744,2]
[392706198,1761837040824,-406.18831676,0.00019781,2]
[392706200,1761837040834,-500.0,0.00019781,2]
[392706202,1761837040843,-500.0,0.00019881,2]
[392706204,1761837040852,-300.0,0.00019881,2]
[392706206,1761837040862,-500.0,0.00019918,2]
[392706208,1761837040872,-400.0,0.0001997,2]
[392706209,1761837040881,-305.0,0.0002,3]
[392706210,1761837040891,-203.58,0.0002,2]
[392706211,1761837040900,-200.0,0.0002,2]
[392706212,1761837040909,-500.0,0.00020018,2]
[392706213,1761837040918,-300.0,0.00020018,2]
[392706214,1761837040929,-500.0,0.00020055,2]
[392706215,1761837040938,-1445.0,0.00020152,2]
[392706216,1761837040947,-98522.66957744,0.00020152,2]
[392706217,1761837040957,-418.2452855,0.00020152,2]
[392706218,1761837040966,-500.0,0.00020155,2]
[392706219,1761837040977,-300.0,0.00020155,2]
[392706220,1761837040986,-162.380719,0.00020274,2]
[392706221,1761837040995,-500.0,0.00020292,2]
[392706222,1761837041005,-500.0,0.00020429,2]
[392706223,1761837041014,-1000.0,0.0002053,2]
[392706224,1761837041025,-21299.1,0.00020548,2]
[392706225,1761837041034,-181.43014395,0.0002073,7]
[392706226,1761837041043,-150.0,0.00020822,2]
[392706227,1761837041052,-150.0,0.00020822,2]
[392706228,1761837041061,-150.0,0.00020822,2]
[392706229,1761837041071,-500.0,0.00020822,2]
[392706230,1761837041080,-500.0,0.00020822,2]
[392706231,1761837041089,-500.0,0.00020822,2]
[392706232,1761837041098,-150.0,0.00020822,2]
[392706233,1761837041107,-150.0,0.00020822,2]
[392706234,1761837041116,-153.84468896,0.00020822,2]
[392706235,1761837041125,-150.0,0.00020822,2]
[392706236,1761837041134,-500.0,0.00020822,2]
[392706237,1761837041143,-500.0,0.00020822,2]
[392706238,1761837041152,-168.3888056,0.00020822,2]
[392706239,1761837041162,-3292.0,0.00020927,2]
[392706240,1761837041171,-299.99,0.00020951,7]
[392706241,1761837041180,-9069.81,0.00020951,2]
[392706242,1761837041191,-5515.04,0.00020951,2]
[392706243,1761837041201,-5857.41,0.00020951,2]
[392706244,1761837041210,-150.99,0.00020951,2]
[392706245,1761837041219,-9999.99,0.00020951,2]
[392706246,1761837041229,-1925.79004048,0.00020951,2]
[392706247,1761837041238,-150.0,0.00020959,2]
[392706248,1761837041247,-150.0,0.00020959,2]
[392706249,1761837041257,-500.0,0.00020959,2]
[392706250,1761837041266,-500.0,0.00020959,2]
[392706251,1761837041275,-500.0,0.00020959,2]
[392706252,1761837041284,-150.0,0.00020959,2]
[392706253,1761837041294,-205.4978853,0.00020959,2]
[392706254,1761837041303,-500.0,0.00020959,2]
[392706255,1761837041313,-500.0,0.00020959,2]
[392706256,1761837041323,-400.0,0.0002097,2]
[392706257,1761837041332,-400.0,0.0002097,2]
[392706258,1761837041341,-350.0,0.00021,2]
[392706259,1761837041351,-1609.74,0.00021068,2]
[392706260,1761837041360,-266.0,0.00021085,2]
[392706261,1761837041369,-252.28607772,0.00021096,2]
[392706262,1761837041378,-150.0,0.00021096,2]
[392706263,1761837041387,-500.0,0.00021096,2]
[392706264,1761837041396,-500.0,0.00021096,2]
[392706265,1761837041406,-500.0,0.00021096,2]
[392706266,1761837041414,-150.0,0.00021096,2]
[392706267,1761837041423,-500.0,0.00021096,2]
[392706268,1761837041433,-500.0,0.00021096,2]
[392706269,1761837041443,-178.11686944,0.00021233,2]
[392706270,1761837041452,-500.0,0.00021233,2]
[392706271,1761837041717,-500.0,0.00021233,2]
[392706272,1761837041728,-500.0,0.00021233,2]
[392706273,1761837041737,-229.91013889,0.00021233,2]
[392706274,1761837041747,-500.0,0.00021233,2]
[392706275,1761837041757,-500.0,0.00021233,2]
[392706276,1761837041766,-2456.0,0.00021242,2]
[392706277,1761837041775,-500.0,0.0002137,2]
[392706278,1761837041785,-598.81002238,0.0002137,2]
[392706279,1761837041794,-500.0,0.0002137,2]
[392706280,1761837041804,-500.0,0.0002137,2]
[392706281,1761837041813,-500.0,0.0002137,2]
[392706282,1761837041823,-174.61919141,0.0002137,2]
[392706283,1761837041832,-500.0,0.00021507,2]
[392706284,1761837041840,-500.0,0.00021507,2]
[392706285,1761837041850,-385.33370736,0.00021507,2]
[392706286,1761837041859,-500.0,0.00021507,2]
[392706287,1761837041868,-4299.6377941,0.00021577,2]
[392706288,1761837041877,-921.1081637,0.00021578,2]
[392706289,1761837041887,-16230.8217141,0.00021619,2]
[392706290,1761837041897,-500.0,0.00021644,2]
[392706291,1761837041908,-500.0,0.00021644,2]
[392706292,1761837041919,-500.0,0.00021644,2]
[392706293,1761837041928,-500.0,0.00021644,2]
[392706294,1761837041940,-300.0,0.00021644,2]
[392706295,1761837041950,-32046.424277,0.00021672,2]
[392706296,1761837041960,-500.0,0.00021781,2]
[392706297,1761837041971,-394.56248889,0.00021781,2]
[392706298,1761837041981,-500.0,0.00021781,2]
[392706299,1761837041990,-500.0,0.00021781,2]
[392706300,1761837042000,-204.49581406,0.00021781,2]
[392706301,1761837042009,-153.49590785,0.0002186,2]
[392706302,1761837042019,-5000.0,0.00021918,2]
[392706303,1761837042028,-600.0,0.00021918,4]
[392706304,1761837042038,-600.0,0.00021918,4]
[392706305,1761837042047,-600.0,0.00021918,4]
[392706306,1761837042057,-600.0,0.00021918,4]
[392706307,1761837042067,-600.0,0.00021918,4]
[392706308,1761837042076,-600.0,0.00021918,4]
[392706309,1761837042086,-600.0,0.00021918,4]
[392706310,1761837042095,-600.0,0.00021918,4]
[392706311,1761837042104,-500.0,0.00021918,2]
[392706312,1761837042113,-500.0,0.00021918,2]
[392706313,1761837042122,-500.0,0.00021918,2]
[392706314,1761837042131,-150.0,0.00021918,2]
[392706315,1761837042140,-150.0,0.00021918,2]
[392706316,1761837042149,-181.08010149,0.00021918,2]
[392706317,1761837042159,-170.0,0.00022,2]
[392706318,1761837042167,-217.12,0.00022,2]
[392706319,1761837042177,-264.74572133,0.00022055,2]
[392706320,1761837042186,-500.0,0.00022055,2]
[392706321,1761837042195,-500.0,0.00022055,2]
[392706322,1761837042204,-205.63640443,0.00022055,2]
[392706323,1761837042213,-165.4863178,0.00022079,2]
[392706324,1761837042223,-500.0,0.00022192,2]
[392706325,1761837042232,-500.0,0.00022192,2]
[392706326,1761837042242,-500.0,0.00022329,2]
[392706327,1761837042251,-500.0,0.00022329,2]
[392706328,1761837042261,-4109.0,0.00022389,2]
[392706329,1761837042270,-180.21,0.00022396,2]
[392706330,1761837042279,-1000.0,0.00022397,2]
[392706331,1761837042288,-500.0,0.00022415,5]
[392706332,1761837042298,-500.0,0.00022466,2]
[392706333,1761837042307,-500.0,0.00022466,2]
[392706334,1761837042316,-187.78006525,0.00022466,2]
[392706335,1761837042325,-183.3,0.000226,7]
[392706336,1761837042334,-165.43,0.00022603,2]
[392706337,1761837042344,-500.0,0.00022603,2]
[392706338,1761837042353,-500.0,0.00022603,2]
[392706339,1761837042362,-15905.47531085,0.0002264,2]
[392706340,1761837042372,-152.91303342,0.0002264,2]
[392706341,1761837042381,-152.0,0.0002264,2]
[392706342,1761837042390,-500.0,0.00022689,5]
[392706343,1761837042399,-517.41481405,0.0002271,2]
[392706344,1761837042409,-500.0,0.0002274,2]
[392706345,1761837042418,-500.0,0.0002274,2]
[392706346,1761837042427,-7441.47160004,0.00022786,2]
[392706347,1761837042436,-152.0,0.00022861,9]
[392706348,1761837042446,-411.8704887,0.00022877,2]
[392706349,1761837042455,-500.0,0.00022877,2]
[392706350,1761837042464,-208.40238271,0.00022889,2]
[392706351,1761837042475,-10122.94942265,0.000229,2]
[392706352,1761837042484,-500.0,0.00022963,5]
[392706353,1761837042493,-36251.56215797,0.00023,2]
[392706364,1761837043700,-165.50779631,0.00020155,2]
[392706366,1761837043710,-208.62212778,0.00020192,2]
[392706368,1761837043719,-162.64757505,0.00020959,2]
[392706370,1761837043730,-8797.99429206,0.00023,2]
[392706372,1761837043739,-1000.0,0.00023,14]
[392706374,1761837043749,-528.14,0.00023,5]
[392706376,1761837043759,-400.0,0.00023,2]
[392706378,1761837043769,-4609.0,0.00023001,2]
[392706380,1761837043778,-1573.0,0.00023014,2]
[392706382,1761837043787,-500.0,0.00023014,2]
[392706384,1761837043796,-194.72792766,0.00023014,2]
[392706385,1761837043805,-1433.32585708,0.000231,2]
[392706387,1761837043815,-1000.0,0.000231,2]
[392706389,1761837043824,-51619.25117446,0.000232,2]
[392706391,1761837043834,-500.0,0.00023237,5]
[392706392,1761837043843,-152.0,0.00023355,10]
[392706393,1761837043853,-267.62569553,0.00023425,2]
[392706394,1761837043862,-200.0,0.000235,2]
[392706395,1761837043872,-500.0,0.00023511,5]
[392706396,1761837043881,-201.93286099,0.00023562,2]
[392706397,1761837043890,-1809.04,0.00023836,2]
[392706398,1761837043899,-152.0,0.00023849,11]
[392706399,1761837043908,-217.12,0.00023913,2]
[392706400,1761837043917,-3600.0,0.00024,2]
[392706401,1761837043926,-16031.08185213,0.00024,2]
[392706402,1761837043935,-17553.04166517,0.00024,2]
[392706403,1761837043944,-772.34267963,0.00024,2]
[392706404,1761837043953,-4518.14693054,0.00024,2]
[392706405,1761837043962,-1022.27947816,0.00024,14]
[392706406,1761837043973,-2894.94929492,0.00024,3]
[392706407,1761837043983,-4299.6377941,0.00024021,2]
[392706408,1761837043992,-921.1081637,0.00024023,2]
[392706409,1761837044001,-16230.8217141,0.00024107,2]
[392706410,1761837044011,-209.40437684,0.0002411,2]
[392706411,1761837044021,-417.12285613,0.0002421,2]
[392706412,1761837044031,-3655.08109374,0.0002421,2]
[392706413,1761837044041,-32046.424277,0.00024212,2]
[392706414,1761837044051,-152.0,0.00024343,12]
[392706415,1761837044062,-297.16050448,0.00024439,2]
[392706416,1761837044071,-150.0,0.00024439,2]
[392706417,1761837044081,-150.0,0.00024439,2]
[392706418,1761837044091,-150.0,0.00024439,2]
[392706419,1761837044101,-1010.66469068,0.000245,2]
[392706420,1761837044110,-204.44010568,0.00024576,2]
[392706421,1761837044120,-150.0,0.00024576,2]
[392706422,1761837044129,-176.78281762,0.00024576,2]
[392706423,1761837044139,-590.73019817,0.0002465,2]
[392706424,1761837044148,-1027.05,0.00024658,2]
[392706425,1761837044157,-1000.0,0.00024658,2]
[392706426,1761837044166,-217.15233878,0.00024658,2]
[392706427,1761837044175,-150.0,0.00024713,2]
[392706428,1761837044185,-157.58259385,0.0002474,2]
[392706429,1761837044194,-512.47897856,0.00024773,2]
[392706430,1761837044203,-500.0,0.00024773,2]
[392706431,1761837044212,-509.07798419,0.00024773,2]
[392706432,1761837044221,-160.54857233,0.00024773,2]
[392706433,1761837044230,-160.51533424,0.00024773,2]
[392706434,1761837044240,-500.0,0.00024773,2]
[392706435,1761837044249,-160.5176655,0.00024773,2]
[392706436,1761837044258,-156.47375685,0.00024773,2]
[392706437,1761837044267,-500.0,0.00024773,2]
[392706438,1761837044276,-500.0,0.00024773,2]
[392706439,1761837044285,-160.59953213,0.00024773,2]
[392706440,1761837044294,-500.0,0.00024773,2]
[392706441,1761837044304,-500.0,0.00024773,2]
[392706442,1761837044313,-160.50968638,0.00024773,2]
[392706443,1761837044322,-500.0,0.00024773,2]
[392706444,1761837044332,-500.81496287,0.00024773,2]
[392706445,1761837044341,-500.0,0.00024773,2]
[392706446,1761837044351,-500.0,0.00024773,2]
[392706447,1761837044361,-500.0,0.00024773,2]